bitfinex/quotes_BTCUSD_20230114
["timestamp","ask_amount","ask_price","bid_price","bid_amount"]
[1673697779099,3.42714944,20719.0,20718.0,0.0061723]
[1673697779604,3.4200974,20719.0,20718.0,0.0061723]
[1673697780110,3.46163541,20719.0,20718.0,0.0061723]
[1673697780361,3.46163541,20719.0,20717.0,0.0061723]
[1673697780362,0.1,20718.0,20717.0,0.0061723]
[1673697780624,1.41310588,20718.0,20717.0,0.0061723]
[1673697780871,1.27846669,20718.0,20717.0,0.0061723]
[1673697781617,2.03616937,20718.0,20717.0,0.0061723]
[1673697781853,1.27846669,20718.0,20717.0,0.0061723]
[1673697782342,1.41446669,20718.0,20717.0,0.0061723]
[1673697782590,1.638752,20718.0,20717.0,0.0061723]
[1673697782829,2.074752,20718.0,20717.0,0.0061723]
[1673697783074,2.53240964,20718.0,20717.0,0.0061723]
[1673697783318,2.23240964,20718.0,20717.0,0.0061723]
[1673697783564,2.53240964,20718.0,20717.0,0.0061723]
[1673697784086,2.96421235,20718.0,20717.0,0.0061723]
[1673697784320,3.40440977,20718.0,20717.0,0.0061723]
[1673697784585,0.18928,20717.0,20716.0,0.00587542]
[1673697784832,2.86875778,20717.0,20716.0,0.00587542]
[1673697785077,2.86875778,20717.0,20713.0,0.00658177]
[1673697785078,0.1,20716.0,20713.0,0.00658177]
[1673697785333,0.88115789,20714.0,20713.0,0.00658177]
[1673697785579,3.0565223,20714.0,20713.0,0.00658177]
[1673697785825,3.88062447,20714.0,20713.0,0.00658177]
[1673697786287,4.16908321,20714.0,20713.0,0.00658177]
[1673697786581,4.01762447,20714.0,20713.0,0.00658177]
[1673697786851,3.88062447,20714.0,20713.0,8.177e-05]
[1673697787089,0.1,20713.0,20711.0,0.00849048]
[1673697787344,2.67790565,20712.0,20711.0,0.00849048]
[1673697787599,3.18799865,20712.0,20711.0,0.00849048]
[1673697787839,2.14422769,20712.0,20711.0,0.00849048]
[1673697788082,2.14422769,20712.0,20711.0,0.00253057]
[1673697788331,1.91342563,20712.0,20711.0,0.00253057]
[1673697788577,1.43622394,20712.0,20711.0,0.00253057]
[1673697788799,2.14741669,20712.0,20711.0,0.00253057]
[1673697789589,2.44741669,20712.0,20711.0,0.00253057]
[1673697789842,2.52431669,20712.0,20711.0,0.00253057]
[1673697790093,2.22431669,20712.0,20711.0,0.00253057]
[1673697790353,2.52431669,20712.0,20711.0,0.00253057]
[1673697791369,2.66854993,20712.0,20711.0,0.00253057]
[1673697791612,2.99841886,20712.0,20711.0,0.00253057]
[1673697792128,2.93981886,20712.0,20711.0,0.00253057]
[1673697792369,2.46571669,20712.0,20711.0,0.00253057]
[1673697792634,2.46571669,20712.0,20711.0,0.17688425]
[1673697792635,1.90242026,20712.0,20711.0,0.17688425]
[1673697792893,1.90242026,20712.0,20711.0,0.00253057]
[1673697792894,1.76542026,20712.0,20711.0,0.00253057]
[1673697793166,1.90142026,20712.0,20711.0,0.00253057]
[1673697793669,1.41860926,20712.0,20711.0,0.00253057]
[1673697793918,1.20851626,20712.0,20711.0,0.00253057]
[1673697794404,0.71720526,20712.0,20711.0,0.00253057]
[1673697794676,1.86376268,20712.0,20711.0,0.00253057]
[1673697794918,2.07385568,20712.0,20711.0,0.00253057]
[1673697795674,1.84247502,20712.0,20711.0,0.00253057]
[1673697795932,2.14247502,20712.0,20711.0,0.00253057]
[1673697796176,1.84247502,20712.0,20711.0,0.00253057]
[1673697796421,1.91937502,20712.0,20711.0,0.00253057]
[1673697796689,2.21937502,20712.0,20711.0,0.00253057]
[1673697796925,3.08195661,20712.0,20711.0,0.00253057]
[1673697797177,2.9427587,20712.0,20711.0,0.00253057]
[1673697797945,3.15910856,20712.0,20711.0,0.00253057]
[1673697798204,2.9427587,20712.0,20711.0,0.00253057]
[1673697798470,0.08560943,20711.0,20710.0,0.00570666]
[1673697798712,0.08560943,20711.0,20707.0,0.00019]
[1673697798713,0.01115134,20708.0,20707.0,0.00019]
[1673697799009,0.1,20707.0,20704.0,0.00849048]
[1673697799263,1.63382964,20706.0,20704.0,0.00849048]
[1673697799525,0.210093,20705.0,20704.0,0.00849048]
[1673697799785,0.693068,20705.0,20704.0,0.00849048]
[1673697800042,0.701568,20705.0,20704.0,0.00849048]
[1673697800302,1.17876969,20705.0,20704.0,0.00849048]
[1673697801050,1.42606422,20705.0,20704.0,0.00849048]
[1673697801544,1.27876969,20705.0,20704.0,0.00849048]
[1673697801790,1.62330551,20705.0,20704.0,0.00849048]
[1673697802031,2.34306322,20705.0,20704.0,0.00849048]
[1673697802273,1.97330551,20705.0,20704.0,0.00849048]
[1673697802526,2.16403146,20705.0,20704.0,9.048e-05]
[1673697802772,0.00839952,20704.0,20697.0,0.01104674]
[1673697803034,0.00874,20699.0,20697.0,0.22688987]
[1673697803299,1.36709495,20698.0,20697.0,0.01104674]
[1673697803546,2.57575908,20698.0,20697.0,0.01104674]
[1673697803791,2.18751226,20698.0,20697.0,0.01104674]
[1673697804038,1.88751226,20698.0,20697.0,0.01104674]
[1673697804282,0.210093,20698.0,20697.0,0.01104674]
[1673697804535,0.210093,20698.0,20697.0,0.26908837]
[1673697804798,0.71949247,20700.0,20697.0,0.26908837]
[1673697805046,1.33984944,20698.0,20697.0,0.01104674]
[1673697805293,1.54994244,20698.0,20697.0,0.01104674]
[1673697805805,1.80928918,20698.0,20697.0,0.01104674]
[1673697806043,1.48408516,20698.0,20697.0,0.01104674]
[1673697806301,1.28767269,20698.0,20697.0,0.01104674]
[1673697806557,2.14804166,20698.0,20697.0,0.01104674]
[1673697806801,2.14804157,20698.0,20697.0,0.01104674]
[1673697807089,2.49804157,20698.0,20697.0,0.01104674]
[1673697807357,2.94667557,20698.0,20697.0,0.01104674]
[1673697807661,2.81067557,20698.0,20697.0,0.01104674]
[1673697807879,0.60868731,20703.0,20697.0,0.18540042]
[1673697808144,0.25166635,20702.0,20698.0,0.17435368]
[1673697808392,0.491683,20707.0,20699.0,0.49527568]
[1673697808666,0.1876925,20705.0,20700.0,0.37745479]
[1673697808895,0.1876925,20705.0,20701.0,0.25195368]
[1673697809394,0.004,20702.0,20701.0,0.25195368]
[1673697809639,0.1876925,20705.0,20701.0,0.07768019]
[1673697809885,0.1876925,20705.0,20701.0,0.73510187]
[1673697810892,0.227377,20708.0,20704.0,0.1776]
[1673697811150,0.227377,20708.0,20704.0,0.659894]
[1673697811151,0.004,20705.0,20704.0,0.659894]
[1673697811394,0.004,20705.0,20704.0,1.541414]
[1673697811650,0.004,20705.0,20704.0,1.841414]
[1673697811895,0.01115134,20708.0,20704.0,1.841414]
[1673697812148,0.01515134,20708.0,20706.0,0.0776]
[1673697812392,0.01115134,20708.0,20707.0,0.320871]
[1673697812636,0.01115134,20708.0,20706.0,0.0776]
[1673697813133,0.01115134,20708.0,20707.0,0.320922]
[1673697813869,0.01515134,20708.0,20707.0,0.320922]
[1673697814133,0.01115134,20708.0,20707.0,0.320922]
[1673697814378,0.01515134,20708.0,20707.0,0.70997174]
[1673697815387,0.01515134,20708.0,20707.0,1.09765]
[1673697815634,0.01515134,20708.0,20707.0,1.31555457]
[1673697815876,0.01515134,20708.0,20707.0,1.29629396]
[1673697816401,0.01115134,20708.0,20707.0,1.15729396]
[1673697816659,0.01515134,20708.0,20707.0,1.29629396]
[1673697816904,0.01515134,20708.0,20707.0,1.27398204]
[1673697817697,0.01521134,20708.0,20707.0,1.27398204]
[1673697817932,0.00836714,20712.0,20708.0,0.1]
[1673697818171,0.00836714,20712.0,20709.0,1.83676868]
[1673697818419,0.00836714,20712.0,20710.0,0.79522168]
[1673697818669,0.00836714,20712.0,20711.0,1.179432]
[1673697818926,0.00836714,20712.0,20711.0,1.610032]
[1673697819178,0.01432136,20719.0,20712.0,0.10470397]
[1673697819441,0.01432136,20719.0,20714.0,2.531048]
[1673697819684,0.01432136,20719.0,20715.0,0.68806268]
[1673697819933,0.01432136,20719.0,20718.0,0.1296]
[1673697820187,0.01432136,20719.0,20718.0,0.825948]
[1673697820683,0.20870171,20719.0,20718.0,0.825948]
[1673697821191,0.01432136,20719.0,20718.0,0.825948]
[1673697821436,0.01432136,20719.0,20718.0,0.830948]
[1673697821696,0.73968231,20719.0,20718.0,0.005]
[1673697821945,1.02367592,20719.0,20718.0,0.005]
[1673697822206,1.32367592,20719.0,20718.0,0.005]
[1673697822452,1.79056098,20719.0,20718.0,0.14]
[1673697822697,3.54427287,20719.0,20713.0,0.00553565]
[1673697822946,0.00874,20714.0,20713.0,0.00553565]
[1673697823209,1.17349595,20714.0,20713.0,0.00553565]
[1673697823470,2.69266967,20714.0,20713.0,0.00553565]
[1673697823735,2.50194372,20714.0,20713.0,0.00553565]
[1673697824231,3.2155785,20714.0,20713.0,0.011]
[1673697824478,3.09102878,20714.0,20713.0,0.011]
[1673697824727,3.13972209,20714.0,20713.0,0.011]
[1673697824986,3.09102878,20714.0,20713.0,0.011]
[1673697825236,3.09102878,20714.0,20709.0,0.00019]
[1673697825237,0.0055,20713.0,20709.0,0.00019]
[1673697825484,0.00874,20710.0,20709.0,0.00019]
[1673697825735,1.91854275,20710.0,20709.0,0.00019]
[1673697825994,2.21854275,20710.0,20709.0,0.00019]
[1673697826483,2.23854275,20710.0,20709.0,0.01119]
[1673697827492,2.71264492,20710.0,20709.0,0.011]
[1673697828010,2.84234492,20710.0,20709.0,0.011]
[1673697829266,2.36824275,20710.0,20709.0,0.011]
[1673697829761,1.69896839,20710.0,20709.0,0.18535368]
[1673697830010,1.69896839,20710.0,20709.0,0.011]
[1673697831076,1.47141769,20710.0,20709.0,0.011]
[1673697831339,1.87141769,20710.0,20709.0,0.011]
[1673697831675,2.15600006,20710.0,20709.0,0.011]
[1673697832149,1.87141769,20710.0,20709.0,0.011]
[1673697832411,1.920111,20710.0,20709.0,0.011]
[1673697832977,2.01528109,20710.0,20709.0,0.0001]
[1673697833205,0.01476802,20708.0,20705.0,0.00019]
[1673697833449,2.12521164,20707.0,20705.0,0.00019]
[1673697833696,0.58594169,20706.0,20705.0,0.00019]
[1673697833970,1.37739269,20706.0,20705.0,0.00019]
[1673697834712,0.1,20705.0,20699.0,0.19261002]
[1673697834959,0.1,20705.0,20697.0,0.01104674]
[1673697834960,0.00874,20701.0,20697.0,0.01104674]
[1673697835200,0.19072595,20700.0,20697.0,0.21893914]
[1673697835442,0.19072595,20699.0,20697.0,0.21893914]
[1673697835697,0.19922595,20698.0,20697.0,0.01104674]
[1673697835949,0.1,20698.0,20697.0,0.01104674]
[1673697836194,0.483136,20699.0,20697.0,0.01104674]
[1673697836438,0.483136,20699.0,20698.0,0.0138579]
[1673697836683,0.96883769,20699.0,20698.0,0.0138579]
[1673697836940,1.72661934,20699.0,20698.0,0.0138579]
[1673697837435,1.72661934,20699.0,20698.0,0.023]
[1673697837436,1.74061934,20699.0,20698.0,0.023]
[1673697837684,1.72661934,20699.0,20697.0,0.01104674]
[1673697837936,1.72661934,20699.0,20692.0,0.00019]
[1673697837937,1.24287477,20698.0,20692.0,0.00019]
[1673697838193,1.24287477,20698.0,20690.0,0.01104674]
[1673697838194,0.00874,20693.0,20690.0,0.01104674]
[1673697838438,0.00874,20691.0,20690.0,0.20879418]
[1673697838682,1.64298364,20692.0,20690.0,0.01104674]
[1673697838683,0.966556,20692.0,20690.0,0.01104674]
[1673697838935,7.7611678,20694.0,20692.0,0.002]
[1673697838936,7.7611608,20694.0,20692.0,0.002]
[1673697839507,0.95282675,20693.0,20692.0,0.002]
[1673697839750,0.95282675,20693.0,20689.0,0.00019]
[1673697839751,0.1,20692.0,20689.0,0.00019]
[1673697839997,2.5987157,20691.0,20690.0,0.016]
[1673697840245,2.69398975,20691.0,20682.0,0.587]
[1673697840496,0.00874,20686.0,20682.0,0.43181857]
[1673697840740,0.19072595,20685.0,20680.0,1.370547]
[1673697840989,0.08845234,20684.0,20682.0,0.483511]
[1673697841243,7.3779278,20689.0,20687.0,0.24542775]
[1673697841493,7.3779278,20689.0,20687.0,0.19072595]
[1673697841494,7.2779278,20689.0,20687.0,0.19072595]
[1673697841999,7.2779278,20689.0,20686.0,0.483417]
[1673697842248,0.106,20691.0,20689.0,0.25414256]
[1673697842484,0.106,20691.0,20689.0,0.44486851]
[1673697842742,0.106,20691.0,20689.0,0.25414256]
[1673697843250,7.2779278,20694.0,20689.0,0.67407295]
[1673697843496,0.612676,20697.0,20689.0,0.67407295]
[1673697843497,0.106,20691.0,20690.0,0.49072595]
[1673697843752,0.106,20691.0,20690.0,1.818272]
[1673697843753,0.0001,20691.0,20690.0,1.818272]
[1673697844001,0.1,20697.0,20690.0,1.66537638]
[1673697844002,0.19666249,20694.0,20690.0,1.66537638]
[1673697844251,0.21105849,20692.0,20691.0,0.214282]
[1673697844494,0.21125849,20692.0,20689.0,0.74014866]
[1673697844738,0.21125849,20692.0,20690.0,0.2676917]
[1673697845219,0.21125849,20692.0,20690.0,0.7510037]
[1673697845720,0.21125849,20692.0,20690.0,0.8490037]
[1673697845721,0.0002,20692.0,20690.0,0.8490037]
[1673697845970,0.0002,20692.0,20691.0,0.23789108]
[1673697846231,0.0082,20692.0,20691.0,0.23789108]
[1673697846480,0.008,20692.0,20691.0,0.23789108]
[1673697846995,0.25482411,20693.0,20691.0,0.23789108]
[1673697847246,0.008,20692.0,20691.0,0.33589108]
[1673697847504,0.01408136,20692.0,20691.0,0.098]
[1673697847754,0.59735936,20692.0,20691.0,0.098]
[1673697847998,1.05325486,20692.0,20691.0,0.098]
[1673697848472,1.05083605,20692.0,20691.0,0.098]
[1673697848779,0.59494055,20692.0,20691.0,0.098]
[1673697849272,0.82589587,20692.0,20691.0,0.098]
[1673697849515,1.07214224,20692.0,20691.0,0.098]
[1673697849761,1.82803774,20692.0,20691.0,0.098]
[1673697850263,1.95873774,20692.0,20691.0,0.098]
[1673697850521,1.95873774,20692.0,20685.0,0.00019]
[1673697850522,2.11740206,20692.0,20685.0,0.00019]
[1673697850790,0.00874,20688.0,20685.0,0.00019]
[1673697851029,0.0085,20687.0,20686.0,0.25713724]
[1673697851284,0.0085,20687.0,20685.0,0.00019]
[1673697851285,0.1085,20687.0,20685.0,0.00019]
[1673697851531,0.21004283,20687.0,20685.0,0.00019]
[1673697851774,0.69343783,20687.0,20685.0,0.19694527]
[1673697852019,0.491895,20687.0,20686.0,0.20131366]
[1673697852269,0.0085,20687.0,20686.0,0.20131366]
[1673697852515,0.0165,20687.0,20686.0,0.20131366]
[1673697852755,0.0085,20687.0,20686.0,0.20131366]
[1673697853258,0.0165,20687.0,20686.0,0.20131366]
[1673697853502,0.0085,20687.0,20682.0,0.49744523]
[1673697853749,0.38964518,20687.0,20686.0,0.094]
[1673697853991,0.22653023,20687.0,20686.0,0.094]
[1673697854491,0.70992523,20687.0,20686.0,0.094]
[1673697854739,0.70192523,20687.0,20682.0,0.27784513]
[1673697854992,0.70192523,20687.0,20682.0,0.37184513]
[1673697854993,0.55743833,20686.0,20682.0,0.37184513]
[1673697855236,0.59348483,20685.0,20682.0,0.27784513]
[1673697855488,0.1,20684.0,20682.0,0.27784513]
[1673697855733,0.1,20684.0,20683.0,0.26076375]
[1673697855990,0.483624,20686.0,20682.0,0.78217118]
[1673697855991,0.0002,20686.0,20682.0,0.78217118]
[1673697856232,0.0002,20686.0,20682.0,0.68817118]
[1673697856482,0.0002,20686.0,20683.0,0.19328282]
[1673697856483,0.008,20685.0,20683.0,0.19328282]
[1673697856733,0.008,20685.0,20683.0,0.97421395]
[1673697856977,0.22229806,20692.0,20684.0,0.1]
[1673697857230,0.22229806,20692.0,20686.0,1.579827]
[1673697857494,0.00764752,20694.0,20687.0,0.91164795]
[1673697857745,0.26222739,20692.0,20689.0,0.966692]
[1673697857994,0.26222739,20692.0,20689.0,1.15741795]
[1673697858249,0.26222739,20692.0,20690.0,0.3]
[1673697858516,0.21990484,20694.0,20691.0,1.387524]
[1673697858768,0.21990484,20694.0,20692.0,0.81164795]
[1673697858769,0.00764752,20694.0,20692.0,0.81164795]
[1673697859066,0.00764752,20694.0,20693.0,0.320922]
[1673697859356,0.00764752,20694.0,20692.0,0.74242999]
[1673697859600,0.00764752,20694.0,20692.0,0.25915999]
[1673697860097,0.00710057,20693.0,20692.0,0.25915999]
[1673697860364,0.00710057,20693.0,20687.0,0.86566737]
[1673697860365,0.59434509,20693.0,20687.0,0.86566737]
[1673697860600,0.62946057,20693.0,20692.0,0.14]
[1673697861105,1.38535607,20693.0,20688.0,0.00019]
[1673697861353,1.14314002,20692.0,20688.0,0.00019]
[1673697861599,1.51794602,20691.0,20688.0,0.00019]
[1673697861855,0.0085,20690.0,20688.0,0.00019]
[1673697862098,0.9477385,20690.0,20688.0,0.00019]
[1673697862351,0.1,20689.0,20688.0,0.00019]
[1673697862594,0.1,20689.0,20688.0,0.01544948]
[1673697862595,0.58942989,20689.0,20688.0,0.01544948]
[1673697863120,0.58942989,20689.0,20688.0,0.02425948]
[1673697863370,0.58942989,20689.0,20685.0,0.00336522]
[1673697863636,0.69197272,20689.0,20688.0,0.141]
[1673697863882,0.59042989,20689.0,20688.0,0.141]
[1673697864128,1.04632539,20689.0,20688.0,0.141]
[1673697864376,1.17502539,20689.0,20685.0,0.00336522]
[1673697864621,1.17502539,20689.0,20685.0,0.14236522]
[1673697864622,0.4643955,20688.0,20685.0,0.14236522]
[1673697864871,1.54553452,20687.0,20685.0,0.00336522]
[1673697865115,0.94159719,20686.0,20685.0,0.00336522]
[1673697865375,1.53375519,20686.0,20685.0,0.01710624]
[1673697865882,1.79396399,20686.0,20685.0,0.01710624]
[1673697866131,1.79396399,20686.0,20685.0,0.15610624]
[1673697866384,1.53133709,20686.0,20685.0,0.01710624]
[1673697866635,1.55233709,20686.0,20685.0,0.02710624]
[1673697866899,1.76565319,20686.0,20685.0,0.02710624]
[1673697867432,1.76323469,20686.0,20685.0,0.01336522]
[1673697867679,1.54117859,20686.0,20685.0,0.01336522]
[1673697868192,1.74015291,20686.0,20685.0,0.01336522]
[1673697868438,1.79510306,20686.0,20685.0,0.01336522]
[1673697868703,1.54117859,20686.0,20685.0,0.01336522]
[1673697868953,1.7984607,20686.0,20685.0,0.01336522]
[1673697869201,1.54117859,20686.0,20685.0,0.01336522]
[1673697869810,1.80878834,20686.0,20685.0,0.01336522]
[1673697870347,1.54117859,20686.0,20685.0,0.01336522]
[1673697870595,1.27795039,20686.0,20685.0,0.01336522]
[1673697872088,1.54117859,20686.0,20685.0,0.01336522]
[1673697872333,1.73109592,20686.0,20685.0,0.01336522]
[1673697872816,1.54117859,20686.0,20685.0,0.01336522]
[1673697873071,1.7770023,20686.0,20685.0,0.01]
[1673697873316,1.3211068,20686.0,20685.0,0.01]
[1673697873830,0.021,20686.0,20685.0,0.20072595]
[1673697874076,0.021,20686.0,20685.0,0.204627]
[1673697875101,0.00017,20689.0,20685.0,0.483442]
[1673697875347,0.00017,20689.0,20685.0,1.11516795]
[1673697875615,0.00017,20689.0,20685.0,0.97416795]
[1673697875852,0.002,20686.0,20685.0,1.11316795]
[1673697876100,0.00017,20689.0,20686.0,0.1]
[1673697876348,0.00217,20689.0,20686.0,0.483409]
[1673697876598,0.23871443,20690.0,20686.0,0.483409]
[1673697876839,0.48328,20692.0,20687.0,0.22736175]
[1673697876840,0.2006666,20689.0,20687.0,0.22736175]
[1673697877349,0.0085,20688.0,20685.0,0.139]
[1673697877621,0.47720169,20687.0,20682.0,0.01412423]
[1673697877883,0.55743833,20686.0,20684.0,0.26021862]
[1673697878123,0.9392915,20687.0,20684.0,0.26021862]
[1673697878370,0.483396,20687.0,20685.0,0.138]
[1673697878616,0.483396,20687.0,20684.0,0.26021862]
[1673697878864,0.9392915,20687.0,20684.0,0.26021862]
[1673697879114,0.1,20686.0,20682.0,0.01393423]
[1673697879387,0.76234587,20685.0,20682.0,0.01393423]
[1673697879626,0.1085,20684.0,20682.0,0.01393423]
[1673697879886,0.11004283,20684.0,20682.0,0.01393423]
[1673697880114,0.21004283,20684.0,20682.0,0.01393423]
[1673697880360,7.7698938,20684.0,20682.0,0.01393423]
[1673697880606,8.2257893,20684.0,20682.0,0.01393423]
[1673697881157,8.2257893,20684.0,20682.0,0.02293423]
[1673697881406,7.7698938,20684.0,20682.0,0.00893423]
[1673697881647,7.7698938,20684.0,20682.0,0.08893423]
[1673697881648,0.1,20683.0,20682.0,0.08893423]
[1673697881894,0.1085,20683.0,20682.0,0.00893423]
[1673697882141,0.1085,20683.0,20682.0,0.01793423]
[1673697882416,0.23477261,20683.0,20682.0,0.01793423]
[1673697882673,0.33677261,20683.0,20682.0,0.09793423]
[1673697883414,1.15142633,20683.0,20682.0,0.09793423]
[1673697883658,1.15142633,20683.0,20682.0,0.00893423]
[1673697883659,1.82508519,20683.0,20682.0,0.00893423]
[1673697883914,1.85508519,20683.0,20682.0,0.01093423]
[1673697884152,1.85508519,20683.0,20682.0,0.00893423]
[1673697884153,1.52508519,20683.0,20682.0,0.00893423]
[1673697884402,1.52508519,20683.0,20682.0,0.01793423]
[1673697884403,2.32918736,20683.0,20682.0,0.01793423]
[1673697884648,2.68940062,20683.0,20682.0,0.01793423]
[1673697885144,0.01522877,20681.0,20680.0,0.2]
[1673697885393,0.95682596,20681.0,20680.0,0.2]
[1673697885633,1.93263596,20681.0,20680.0,0.2]
[1673697886383,2.23263596,20681.0,20680.0,0.2]
[1673697886630,2.93622943,20681.0,20680.0,0.011]
[1673697886876,3.0274264,20681.0,20680.0,0.011]
[1673697887122,3.52133199,20681.0,20680.0,0.011]
[1673697887368,2.29800539,20681.0,20678.0,0.01473409]
[1673697887627,0.48570169,20680.0,20678.0,0.01473409]
[1673697887869,1.54436569,20679.0,20678.0,0.01473409]
[1673697888123,8.83079349,20679.0,20678.0,0.01473409]
[1673697888627,8.83079349,20679.0,20678.0,0.02573409]
[1673697889609,8.83079349,20679.0,20678.0,0.01473409]
[1673697889886,8.96049349,20679.0,20673.0,0.37388805]
[1673697890174,8.96049349,20679.0,20674.0,0.39084127]
[1673697890175,0.33551426,20678.0,20674.0,0.39084127]
[1673697890432,0.23551426,20678.0,20674.0,0.39084127]
[1673697890683,7.2779278,20679.0,20675.0,0.30008029]
[1673697890923,0.01522877,20681.0,20676.0,0.613347]
[1673697890924,0.2663486,20680.0,20676.0,0.613347]
[1673697891173,0.2663486,20680.0,20676.0,0.80407295]
[1673697891679,0.2663486,20680.0,20676.0,0.67437295]
[1673697891930,0.2663486,20680.0,20676.0,0.483647]
[1673697892177,0.038,20679.0,20678.0,0.01]
[1673697893165,0.24702427,20680.0,20677.0,0.22068167]
[1673697893410,0.039,20680.0,20678.0,0.2078365]
[1673697893911,0.038,20679.0,20678.0,0.2178365]
[1673697894159,0.038,20679.0,20678.0,0.2175365]
[1673697894404,0.26544902,20680.0,20678.0,0.2075365]
[1673697894896,0.01522877,20681.0,20675.0,0.483671]
[1673697894897,0.12396877,20681.0,20675.0,0.483671]
[1673697895176,0.12396877,20681.0,20678.0,0.01]
[1673697895177,0.28589296,20679.0,20678.0,0.01]
[1673697895934,0.0085,20679.0,20675.0,0.19072595]
[1673697896178,0.0085,20679.0,20674.0,0.00019]
[1673697896179,0.11004283,20679.0,20674.0,0.00019]
[1673697896430,0.11004283,20678.0,20674.0,0.00019]
[1673697896669,0.11004283,20678.0,20674.0,0.24624169]
[1673697897188,0.11004283,20678.0,20674.0,0.24605169]
[1673697897441,0.11004283,20678.0,20675.0,0.076]
[1673697897695,0.19823748,20677.0,20674.0,0.24605169]
[1673697897941,0.19823748,20677.0,20674.0,0.38505169]
[1673697898692,0.19823748,20677.0,20674.0,0.24605169]
[1673697898942,0.20123748,20677.0,20674.0,0.38505169]
[1673697899708,0.0085,20676.0,20674.0,0.38505169]
[1673697900198,0.0085,20676.0,20674.0,0.139]
[1673697900449,0.22366524,20675.0,20674.0,0.139]
[1673697900693,0.22366524,20675.0,20673.0,0.24709077]
[1673697900694,0.23216524,20675.0,20673.0,0.24709077]
[1673697900964,0.0085,20676.0,20673.0,0.24709077]
[1673697901217,7.99930444,20677.0,20673.0,0.68476004]
[1673697901218,7.2779278,20677.0,20673.0,0.68476004]
[1673697901468,0.003,20676.0,20674.0,0.139]
[1673697901715,0.33003784,20677.0,20674.0,0.24697493]
[1673697901965,0.08611,20675.0,20674.0,0.24697493]
[1673697902472,0.29560604,20675.0,20673.0,0.01031509]
[1673697902722,0.29560604,20675.0,20673.0,0.14831509]
[1673697903004,0.29560604,20675.0,20673.0,0.01031509]
[1673697903254,0.003,20675.0,20674.0,0.139]
[1673697903506,0.08611,20675.0,20674.0,0.21748322]
[1673697903754,0.08611,20675.0,20673.0,0.01031509]
[1673697904005,0.25216182,20674.0,20673.0,0.01031509]
[1673697904256,0.003,20675.0,20673.0,0.23500609]
[1673697904498,0.0115,20675.0,20673.0,0.23500609]
[1673697904755,0.0115,20675.0,20673.0,0.37300609]
[1673697905019,0.0115,20675.0,20673.0,0.14831509]
[1673697905263,0.08611,20674.0,20673.0,0.14831509]
[1673697905477,0.08611,20674.0,20673.0,0.28631509]
[1673697905769,0.003,20674.0,20673.0,0.28631509]
[1673697906028,0.27649156,20674.0,20673.0,0.28631509]
[1673697906771,0.27349156,20674.0,20673.0,0.01031509]
[1673697907273,7.2779278,20676.0,20673.0,0.20104104]
[1673697907523,0.21897173,20679.0,20674.0,0.19072595]
[1673697907782,0.11522877,20681.0,20675.0,1.15805695]
[1673697908032,0.01522877,20681.0,20676.0,0.19072595]
[1673697908283,0.01522877,20681.0,20677.0,1.15795995]
[1673697908284,0.01528877,20681.0,20677.0,1.15795995]
[1673697908532,0.01528877,20681.0,20678.0,0.19072595]
[1673697908788,0.003,20679.0,20678.0,0.67431395]
[1673697909046,0.2072788,20681.0,20678.0,0.67431395]
[1673697909047,0.23475802,20680.0,20678.0,0.80451]
[1673697909306,0.23475802,20680.0,20679.0,0.214628]
[1673697909809,0.23475802,20680.0,20678.0,0.621588]
[1673697910051,0.23475802,20680.0,20679.0,0.320922]
[1673697910296,0.01828877,20681.0,20679.0,0.320922]
[1673697910297,0.01822877,20681.0,20679.0,0.320922]
[1673697910542,0.01322877,20681.0,20680.0,0.40516912]
[1673697911025,0.01022877,20681.0,20680.0,0.51149112]
[1673697911514,0.01022877,20681.0,20680.0,0.99504912]
[1673697911759,0.01322877,20681.0,20680.0,1.13404912]
[1673697912002,0.01022877,20681.0,20680.0,0.99504912]
[1673697912263,0.01022877,20681.0,20680.0,0.65049112]
[1673697912264,0.01322877,20681.0,20680.0,0.65049112]
[1673697912532,0.02172877,20681.0,20680.0,0.139]
[1673697912799,0.12172877,20681.0,20680.0,0.139]
[1673697913052,0.35602151,20681.0,20680.0,0.139]
[1673697915029,0.59583094,20681.0,20680.0,0.139]
[1673697915317,2.00091733,20681.0,20680.0,0.139]
[1673697915566,2.34774188,20681.0,20680.0,0.139]
[1673697916301,2.13121733,20681.0,20680.0,0.139]
[1673697916550,2.4923733,20681.0,20680.0,0.139]
[1673697916803,2.01521113,20681.0,20675.0,0.21736757]
[1673697917052,0.85398138,20680.0,20676.0,0.23858615]
[1673697917257,0.492083,20679.0,20676.0,0.23858615]
[1673697917548,0.1,20678.0,20676.0,0.23858615]
[1673697917791,0.21030283,20678.0,20676.0,0.23858615]
[1673697918053,0.0085,20677.0,20675.0,0.19684094]
[1673697918301,0.23641939,20677.0,20675.0,0.19684094]
[1673697918547,0.23641939,20677.0,20676.0,0.01]
[1673697919043,0.23641939,20677.0,20676.0,0.013]
[1673697919781,0.23641939,20677.0,20675.0,0.19684094]
[1673697921277,0.23641939,20677.0,20673.0,0.01031509]
[1673697921521,0.23641939,20677.0,20674.0,0.20234629]
[1673697921785,0.23641939,20677.0,20674.0,0.39307224]
[1673697922034,0.0085,20677.0,20674.0,0.20234629]
[1673697922278,7.91618143,20681.0,20674.0,1.0337743]
[1673697922522,0.21416655,20680.0,20675.0,0.33447307]
[1673697922770,0.0085,20679.0,20676.0,0.19072595]
[1673697922978,0.004,20677.0,20676.0,0.19072595]
[1673697923259,0.0085,20679.0,20676.0,0.483652]
[1673697923505,6e-05,20680.0,20676.0,0.67437795]
[1673697923750,6e-05,20680.0,20677.0,0.45069549]
[1673697924001,0.044,20679.0,20678.0,0.96721]
[1673697924253,0.044,20679.0,20678.0,1.288132]
[1673697924740,6e-05,20680.0,20678.0,0.96721]
[1673697924987,6e-05,20680.0,20678.0,1.59456212]
[1673697924988,0.00406,20680.0,20678.0,1.59456212]
[1673697925237,0.00406,20680.0,20679.0,0.1]
[1673697925479,0.004,20680.0,20679.0,0.583582]
[1673697925730,0.004,20680.0,20679.0,0.904504]
[1673697925997,0.01016877,20681.0,20679.0,0.804504]
[1673697926271,0.01016877,20681.0,20679.0,0.483582]
[1673697926767,0.01016877,20681.0,20679.0,0.81230795]
[1673697927008,0.01016877,20681.0,20680.0,0.77651705]
[1673697927260,0.01016877,20681.0,20680.0,2.42397381]
[1673697927261,0.01416877,20681.0,20680.0,2.42397381]
[1673697927770,0.01416877,20681.0,20680.0,2.42470527]
[1673697928022,0.01016877,20681.0,20680.0,2.42470527]